Cogmind - Beta 9.5 --- EXPLORER MODE // 2020.04.10 @ 10:54:10 // Winter2019/RPGLIKE Player: K.Ioz Result: Destroyed by H-66 Slayer with Gauss Rifle Performance ------------- Evolutions (4) 2000 Regions Visited (15) 3000 Robots Destroyed (302) 1510 Value Destroyed (15206) 15206 Prototype IDs (78) 1560 Alien Tech Used (0) 0 Bonus (2165) 2165 TOTAL SCORE: 25441 Bonus ------- High Alert Combat Kills 562 Follower Combat Kills 1093 Entered Garrisons 800 Used RIF Installer 2000 Aligned with FarCom 300 Friendly Fire -2590 Cogmind --------- Core Integrity 0/700 Matter 71/300 Energy 103/500 System Corruption 9% Temperature Cool (143) Movement Treading (163) Location -6/Factory Parts ------- > --- POWER (2) -------- Reinforced Deuterium Engine Fission Core > --- PROPULSION (3) --- Armored Treads Medium Treads Improved Medium Treads > --- UTILITY (12) ----- Improved Cryofiber Web Improved Cooling System Coolant Injector Matter Filter Improved Transmission Jammer Advanced Hacking Suite System Shield Relay Coupler [NC] (43) Relay Coupler [NC] (94) Relay Coupler [Swarmer] (138) Relay Coupler [Behemoth] (15) Trap Reconfigurator > --- WEAPON (4) ------- Proton Cannon Heavy Plasma Cannon Magnetic Acceleration Cannon Antimatter Cannon > --- INVENTORY (6) ---- Energy Well (500) Matter Compressor (250) Energy Filter Force Field Heavy Flak Cannon Remote Datajack Peak State ------------ > --- POWER ------------ Improved Deuterium Engine Fission Core > --- PROPULSION ------- Armored Treads Medium Treads Medium Treads > --- UTILITY ---------- Improved Cryofiber Web Improved Transmission Jammer Improved Shock Absorption System Force Field Advanced Hacking Suite System Shield Relay Coupler [Swarmer] Relay Coupler [Grunt] Relay Coupler [Sentry] Relay Coupler [Behemoth] Trap Reconfigurator > --- WEAPON ----------- Improved EM Pulse Cannon Heavy Plasma Cannon Magnetic Acceleration Cannon Antimatter Cannon > --- INVENTORY -------- Energy Well Matter Compressor Long-range Terrain Scanner Advanced Assault Cannon Heavy Flak Cannon Remote Datajack [Rating: 97] Favorites ----------- Power Cooled Ion Engine Engine Cooled Ion Engine Power Core Fission Core Propulsion Armored Treads Treads Armored Treads Utility Trap Reconfigurator Device Trap Reconfigurator Storage Matter Compressor Processor Target Analyzer Hackware System Shield Protection Hardened Medium Armor Plating Weapon Battle Cannon Energy Gun EM Pulse Gun Energy Cannon Heavy Plasma Cannon Ballistic Gun Heavy Assault Rifle Ballistic Cannon Battle Cannon Special Weapon Remote Datajack Impact Weapon Powered Hammer Slashing Weapon Katana Piercing Weapon Heavy Pick Special Melee Weapon Datajack Build | -11 -10 -10 -9 -9 -9 -8 -8 -8 -8 -8 -7 -7 -6 -6 -6 ------- Run | Scr Mat Min Mat Min Exi Min Mat Gar Mat Gar Fac Gar Fac Gar Fac Slots Evolved 17 | 3 2 . 5 1 . . 2 1 . . 1 1 . . 1 Power 1 | . . . 1 . . . . . . . . . . . . Propulsion 2 | 1 . . . . . . 1 . . . . . . . . Utility 11 | 1 2 . 3 . . . 1 1 . . 1 1 . . 1 Weapon 3 | 1 . . 1 1 . . . . . . . . . . . Parts Attached 207 | 7 3 . 15 1 4 . 6 2 9 3 38 22 44 14 39 Power 14 | 1 1 . 3 . . . . . 1 . 3 3 1 1 . Engine 11 | 1 1 . 3 . . . . . 1 . 2 2 . 1 . Core 3 | . . . . . . . . . . . 1 1 1 . . Reactor . | . . . . . . . . . . . . . . . . Propulsion 18 | 2 . . 1 . 2 . 2 . 3 . 1 2 3 2 . Treads 18 | 2 . . 1 . 2 . 2 . 3 . 1 2 3 2 . Leg . | . . . . . . . . . . . . . . . . Wheel . | . . . . . . . . . . . . . . . . Hover . | . . . . . . . . . . . . . . . . Flight . | . . . . . . . . . . . . . . . . Utility 78 | 2 2 . 4 . 2 . 4 2 4 2 8 13 13 8 14 Device 49 | 1 . . 1 . 2 . 2 1 3 2 3 5 12 5 12 Storage 2 | . . . . . . . . . . . . 1 . . 1 Processor 6 | 1 1 . 1 . . . . . . . 1 1 1 . . Hackware 15 | . . . . . . . . 1 1 . 4 5 . 3 1 Protection 6 | . 1 . 2 . . . 2 . . . . 1 . . . Artifact . | . . . . . . . . . . . . . . . . Weapon 97 | 2 . . 7 1 . . . . 1 1 26 4 27 3 25 Energy Gun 6 | 1 . . . . . . . . . . 1 . 4 . . Energy Cannon 30 | . . . 3 . . . . . . 1 13 2 6 . 5 Ballistic Gun 6 | 1 . . 3 . . . . . . . 1 . 1 . . Ballistic Cannon 26 | . . . 1 1 . . . . . . 3 . 10 2 9 Launcher . | . . . . . . . . . . . . . . . . Special Weapon 25 | . . . . . . . . . 1 . 7 2 5 1 9 Impact Weapon 1 | . . . . . . . . . . . . . . . 1 Slashing Weapon 1 | . . . . . . . . . . . . . . . 1 Piercing Weapon 1 | . . . . . . . . . . . . . 1 . . Special Melee Weapon 1 | . . . . . . . . . . . 1 . . . . Unidentified Prototypes 8 | . . . 3 . 1 . . . . . 2 . 2 . . Parts Lost . | . . . . . . . . . . . . . . . . Power . | . . . . . . . . . . . . . . . . Propulsion . | . . . . . . . . . . . . . . . . Utility . | . . . . . . . . . . . . . . . . Weapon . | . . . . . . . . . . . . . . . . Highest Loss Streak . | . . . . . . . . . . . . . . . . Average Slot Usage (%) 99 | . 100 100 100 100 99 100 99 100 99 100 100 99 99 99 99 Engine 9 | . 11 11 14 13 13 13 12 11 10 11 10 9 7 5 4 Core 1 | . . . . . . . . . . . . . 2 5 4 Treads 15 | . 23 22 15 13 12 13 16 16 15 16 15 15 14 14 14 Device 21 | . 11 11 14 13 13 13 17 22 24 29 24 15 20 24 27 Processor 4 | . 18 22 15 13 13 13 7 5 5 5 . . . . . Hackware 18 | . . . . . . . . 2 9 8 20 30 35 30 28 Protection 6 | . 11 11 15 20 20 20 18 16 8 5 5 4 . . . Energy Cannon 7 | . . . 7 6 6 6 5 5 5 5 9 7 7 10 9 Ballistic Gun 2 | . 11 11 7 6 6 6 5 5 1 . . . . . . Ballistic Cannon 8 | . . . 5 12 13 13 12 11 11 11 10 10 7 9 7 Special Weapon 1 | . . . . . . . . . 3 5 . 2 3 1 1 Naked Turns . | . . . . . . . . . . . . . . . . Heaviest Build 72 | 8 13 13 43 46 46 46 58 58 58 51 60 63 57 69 72 Greatest Support 78 | 40 40 40 40 40 40 40 63 63 63 63 63 60 76 78 78 Greatest Overweight (x) 15 | . . . 1 1 15 1 1 . 1 . . 1 2 1 . Average Overweight (x) . | . . . . 1 1 1 . . . . . . . . . Largest Inventory Capacity 6 | 1 3 4 4 4 4 4 4 5 5 5 6 6 6 6 6 Average Capacity 5 | . 2 3 4 4 4 4 4 4 5 5 5 6 6 6 6 Most Carried 6 | 1 3 4 4 4 4 4 4 5 5 5 6 6 6 6 6 Average Carried 5 | . 2 3 3 4 4 4 3 4 5 4 5 5 5 5 5 Final Capacity 6 | 1 3 4 4 4 4 4 4 5 5 5 6 6 6 6 6 Final Carried 6 | 1 3 4 4 4 4 4 4 5 5 5 6 4 6 6 6 Class Distribution -------------------- 34% | Wizard-Skirmisher 18% | Hacker-Mutant 15% | Wizard-Mutant 14% | Hacker-Tank 9% | Hacker-Gunner 7% | Wizard-Tank Dominant Class ---------------- Hacker-Mutant | -10/Materials Hacker-Mutant | -10/Mines Hacker-Gunner | -9/Materials Hacker-Tank | -9/Mines Hacker-Tank | -9/Exiles Hacker-Tank | -8/Mines Hacker-Mutant | -8/Materials Hacker-Tank | -8/Garrison Hacker-Gunner | -8/Materials Hacker-Mutant | -8/Garrison Wizard-Skirmisher | -7/Factory Wizard-Tank | -7/Garrison Wizard-Skirmisher | -6/Factory Wizard-Skirmisher | -6/Garrison Wizard-Skirmisher | -6/Factory Resources | -11 -10 -10 -9 -9 -9 -8 -8 -8 -8 -8 -7 -7 -6 -6 -6 ----------- Run | Scr Mat Min Mat Min Exi Min Mat Gar Mat Gar Fac Gar Fac Gar Fac Matter Collected 8274 | 270 87 81 475 51 144 189 115 428 337 415 1462 1014 1208 623 1375 Remotely . | . . . . . . . . . . . . . . . . Salvage Created 9386 | . 216 150 698 87 307 139 21 709 567 576 1239 1062 1315 520 1780 Parts 555 | . 18 . 69 9 16 6 12 30 31 32 72 48 56 25 131 Haulers Intercepted . | . . . . . . . . . . . . . . . . Recyclers Shooed 1 | . . . 1 . . . . . . . . . . . . Parts Field Recycled . | . . . . . . . . . . . . . . . . Retrieved Matter . | . . . . . . . . . . . . . . . . Parts Self-Destructed . | . . . . . . . . . . . . . . . . Prevented . | . . . . . . . . . . . . . . . . Kills | -11 -10 -10 -9 -9 -9 -8 -8 -8 -8 -8 -7 -7 -6 -6 -6 ------- Run | Scr Mat Min Mat Min Exi Min Mat Gar Mat Gar Fac Gar Fac Gar Fac Combat Hostiles Destroyed 249 | . 6 11 28 4 7 3 3 18 14 20 33 18 22 15 47 Guns 37 | . 6 11 11 . 2 1 1 2 1 . . . 2 . . Cannons 198 | . . . 17 4 5 2 2 16 13 20 30 16 19 15 39 AOE 12 | . . . . . . . . . . . 3 1 1 . 7 Classes Destroyed 17 | . 3 1 4 . 3 . . 1 2 . 1 1 . . 1 Worker 8 | . . . 2 . . . . . 1 . . . 3 . 2 Builder 5 | . . . 1 . . . . . . . 3 . . . 1 Tunneler 2 | . . . . . . . . . 1 . 1 . . . . Recycler 2 | . . . 1 . . . . . . . . . 1 . . Operator 2 | . . . . . . . . . 2 . . . . . . Watcher 22 | . 3 . 3 . . . 1 . 2 . 4 . 6 . 3 Swarmer 54 | . 2 . 14 2 . 1 . 3 4 8 6 5 6 1 2 Grunt 86 | . 4 . 5 2 3 2 2 9 7 8 8 7 8 7 14 Brawler 9 | . . . . . . . . 2 . 1 1 2 . . 3 Duelist 11 | . . . . . 1 . . . 1 1 1 . 3 . 4 Sentry 41 | . . . 9 . . . . 4 2 1 4 7 4 6 4 Demolisher 1 | . . . . . 1 . . . . . . . . . . Specialist 1 | . . . . . . . . . . . . . . . 1 Hunter 12 | . . . . . 2 . 1 . . 1 2 1 . . 5 Programmer 33 | . . . . . . . . . . . 11 1 4 2 15 Behemoth 2 | . . . . . . . . . . . . 1 . 1 . Assembled 11 | . . 11 . . . . . . . . . . . . . Best Kill Streak 5 | . 3 2 4 2 3 2 2 3 3 4 4 4 4 3 5 Combat Bots Only 5 | . 2 2 3 2 3 2 2 3 2 4 4 4 3 3 5 Max Kills in Single Turn 3 | . 1 1 3 2 1 1 1 1 2 2 1 1 3 1 2 Gunslinging . | . . . . . . . . . . . . . . . . Exploded 2 | . . . . . . . . . . . 1 1 1 . 2 Melee . | . . . . . . . . . . . . . . . . Uniques/NPCs Destroyed . | . . . . . . . . . . . . . . . . Combat | -11 -10 -10 -9 -9 -9 -8 -8 -8 -8 -8 -7 -7 -6 -6 -6 -------- Run | Scr Mat Min Mat Min Exi Min Mat Gar Mat Gar Fac Gar Fac Gar Fac Damage Taken 8005 | . 91 250 637 11 608 81 99 286 499 175 1128 1146 712 447 1835 Core 5819 | . 60 203 399 6 422 46 61 185 382 105 803 808 573 324 1442 Absorbed by Shields 1133 | . . . . . . . . . 18 135 . 481 . 367 132 Redirected to Core 5112 | . 60 124 366 6 339 46 61 171 373 100 719 698 465 282 1302 Core Remaining (%) 84 | 100 . 100 . . . 30 . . . 98 . 96 . . . Volleys Fired 678 | . 19 27 54 3 17 14 5 38 35 42 105 75 82 58 104 Largest 4 | . 2 2 3 4 4 4 4 4 4 4 4 4 4 4 4 Hottest 287 | . 60 60 159 174 174 174 174 174 251 251 245 245 287 252 258 Shots Fired 1906 | . 38 54 155 12 61 32 18 128 96 114 297 195 208 158 340 Gun 251 | . 38 54 64 3 17 14 5 36 9 . . . 11 . . Cannon 1553 | . . . 91 9 44 18 13 92 74 110 282 177 173 146 324 Launcher . | . . . . . . . . . . . . . . . . Special 102 | . . . . . . . . . 13 4 15 18 24 12 16 Kinetic 996 | . 19 27 87 9 45 26 13 96 53 77 156 87 84 63 154 Thermal 478 | . . . 58 3 16 6 5 32 43 37 57 34 70 37 80 Explosive . | . . . . . . . . . . . . . . . . Electromagnetic 347 | . 19 27 10 . . . . . . . 69 56 30 46 90 Robot Hit Streak 57 | . 9 15 21 5 21 16 17 28 48 32 43 57 29 34 22 Robot Miss Streak 4 | . 2 2 4 . 1 2 . 2 2 1 2 3 2 1 2 Penetration Max 1 | . . . . . . . . . . . 1 . . . . Secondary Targets . | . . . . . . . . . . . . . . . . Shots Hit Robots 1331 | . 26 42 101 3 46 21 14 77 61 74 215 142 159 114 236 Core Hits 479 | . 12 22 44 5 14 6 8 29 26 30 64 40 51 31 97 Critical Hits 72 | . . . 8 1 5 . 1 6 9 12 7 8 9 2 4 Critical Kills 24 | . . . 3 1 . . 1 2 3 6 1 1 3 2 1 Critical Parts Destroyed 46 | . . . 5 . 5 . . 4 6 5 6 6 6 . 3 Melee Attacks 4 | . . . . . . . . . . . 4 . . . . Impact . | . . . . . . . . . . . . . . . . Slashing . | . . . . . . . . . . . . . . . . Piercing . | . . . . . . . . . . . . . . . . Sneak Attacks 1 | . . . . . . . . . . . 1 . . . . Combat Hostiles . | . . . . . . . . . . . . . . . . Follow-up Attacks . | . . . . . . . . . . . . . . . . Damage Inflicted 31849 | . 363 465 1948 124 835 239 237 1403 1256 1584 4800 3607 4106 3047 7835 Guns 2383 | . 363 465 599 17 179 112 49 238 97 . . . 264 . . Cannons 27027 | . . . 1202 107 656 127 188 1165 1015 1536 4574 3428 3528 2996 6505 Explosions 2247 | . . . 147 . . . . . . . 226 179 314 51 1330 Melee . | . . . . . . . . . . . . . . . . Ramming . | . . . . . . . . . . . . . . . . Kinetic 14047 | . 192 275 952 63 540 158 134 846 557 916 2276 1661 1659 1132 2686 Thermal 11008 | . . . 758 61 295 81 103 557 699 668 1390 847 1806 1068 2675 Explosive 982 | . . . 147 . . . . . . . . . 120 . 715 Electromagnetic 5812 | . 171 190 91 . . . . . . . 1134 1099 521 847 1759 Impact . | . . . . . . . . . . . . . . . . Slashing . | . . . . . . . . . . . . . . . . Piercing . | . . . . . . . . . . . . . . . . Highest Corruption 9 | . . . . . 2 2 . . . . 8 8 5 5 9 Average Corruption 6 | . . . . . 2 2 . . . . 6 8 3 5 6 Corruption Purged . | . . . . . . . . . . . . . . . . Effects 577 | . . . . . . 7 . . . . 147 99 51 65 208 Message Errors 139 | . . . . . . 4 . . . . 31 22 13 20 49 Matter Fused 121 | . . . . . . . . . . . 35 17 12 10 47 Heat Flow Errors 79 | . . . . . . 1 . . . . 22 14 6 8 28 Energy Discharges 60 | . . . . . . 2 . . . . 20 9 4 5 20 Parts Rejected 3 | . . . . . . . . . . . . 1 . 2 . Data Loss (minor) 63 | . . . . . . . . . . . 8 14 9 6 26 Data Loss (major) 20 | . . . . . . . . . . . 6 5 1 1 7 Misfires 22 | . . . . . . . . . . . 5 4 1 4 8 Targeting Errors 59 | . . . . . . . . . . . 17 12 5 7 18 Weapon Failures 11 | . . . . . . . . . . . 3 1 . 2 5 Overload Shots . | . . . . . . . . . . . . . . . . Overflow Damage 773 | . . . 33 . 20 . . . 29 18 113 26 174 99 261 Projectiles 714 | . . . 33 . 20 . . . 29 18 113 26 153 99 223 Explosions 59 | . . . . . . . . . . . . . 21 . 38 Melee . | . . . . . . . . . . . . . . . . Knockbacks 102 | . . . 1 . 3 1 1 2 10 8 18 4 20 7 27 Impact . | . . . . . . . . . . . . . . . . Kinetic 100 | . . . 1 . 3 1 1 2 9 8 17 4 20 7 27 Secondary 2 | . . . . . . . . . 1 . 1 . . . . Self-Inflicted Damage 490 | . . . . . . . . . . . 77 20 34 37 322 Shots 15 | . . . . . . . . . . . 2 1 1 1 10 Rammed . | . . . . . . . . . . . . . . . . Targets Rammed . | . . . . . . . . . . . . . . . . Kicked . | . . . . . . . . . . . . . . . . Crushed . | . . . . . . . . . . . . . . . . Highest Temperature 551 | . 126 65 392 264 402 397 315 320 186 18 484 551 236 424 321 Average Temperature 126 | . 37 16 113 113 165 186 126 119 75 11 114 170 76 118 141 Received Heat Transfer 2154 | . 66 100 210 . 36 18 63 207 108 105 270 310 108 164 389 Effects 19 | . . . 3 1 . 3 . . . . 3 7 . 2 . Shutdowns 1 | . . . . . . 1 . . . . . . . . . Energy Bleed 2 | . . . . 1 . . . . . . . 1 . . . Interference 12 | . . . 2 . . 2 . . . . 2 4 . 2 . Matter Decay 1 | . . . 1 . . . . . . . . . . . . Short Circuit 1 | . . . . . . . . . . . . 1 . . . Damage (minor) 2 | . . . . . . . . . . . 1 1 . . . Siege Activations . | . . . . . . . . . . . . . . . . Robots Corrupted 3 | . . . . . . . . . . . . 1 . . 2 Combat Hostiles 2 | . . . . . . . . . . . . 1 . . 1 Parts Fried 17 | . . . . . . . . . 1 . 3 . 1 1 11 Impact Corruptions . | . . . . . . . . . . . . . . . . Robots Melted . | . . . . . . . . . . . . . . . . Combat Hostiles . | . . . . . . . . . . . . . . . . Parts Melted 13 | . . . 2 . . . . . 1 1 2 . 5 . 2 Heat Transferred 16735 | . . . 1369 111 518 148 185 999 1299 1210 2100 1374 2725 1347 3350 Parts Sabotaged . | . . . . . . . . . . . . . . . . Parts Stolen . | . . . . . . . . . . . . . . . . Parts Stripped . | . . . . . . . . . . . . . . . . Power Chain Reactions 12 | . . . . . . . . . . . 4 2 3 1 2 Missiles Intercepted . | . . . . . . . . . . . . . . . . Alert | -11 -10 -10 -9 -9 -9 -8 -8 -8 -8 -8 -7 -7 -6 -6 -6 ------- Run | Scr Mat Min Mat Min Exi Min Mat Gar Mat Gar Fac Gar Fac Gar Fac Peak Influence 891 | . 122 15 305 54 . 52 105 876 363 682 540 800 442 891 726 Average Influence 186 | . 30 1 86 17 . 15 26 605 37 472 82 591 96 534 104 Maximum Alert Level 3 | . . . 1 . . . . 3 1 2 2 3 2 3 3 Low Security (%) 70 | 100 100 100 88 100 . 100 100 7 95 14 82 5 85 21 82 Level 1 9 | . . . 11 . . . . 20 4 18 13 18 6 8 10 Level 2 12 | . . . . . . . . 27 . 66 4 44 7 30 7 Level 3 6 | . . . . . . . . 43 . . . 32 . 38 . Level 4 . | . . . . . . . . . . . . . . . . Level 5 . | . . . . . . . . . . . . . . . . High Security . | . . . . . . . . . . . . . . . . Max Security . | . . . . . . . . . . . . . . . . Squads Dispatched 47 | . 1 . . . . . . . 1 . 17 . 9 . 19 Investigation 3 | . 1 . . . . . . . . . 1 . 1 . . Extermination 34 | . . . . . . . . . . . 12 . 7 . 15 Reinforcement 6 | . . . . . . . . . 1 . 1 . 1 . 3 Assault 1 | . . . . . . . . . . . . . . . 1 Garrison 3 | . . . . . . . . . . . 3 . . . . Intercept . | . . . . . . . . . . . . . . . . Construction Impeded 1 | . . . . . . . . . . . . . . . 1 Haulers Reinforced . | . . . . . . . . . . . . . . . . Stealth | -11 -10 -10 -9 -9 -9 -8 -8 -8 -8 -8 -7 -7 -6 -6 -6 --------- Run | Scr Mat Min Mat Min Exi Min Mat Gar Mat Gar Fac Gar Fac Gar Fac Distress Signals 7 | . 1 . 2 . . . . . . . 1 . 1 . 2 Communications Jammed 43 | . . . . . . . . . . . 7 . 5 . 31 Distress Signals 42 | . . . . . . . . . . . 7 . 5 . 30 Times Spotted 436 | . 11 23 42 4 14 4 6 23 25 32 65 38 48 36 65 Peak Tracking Total 9 | . 4 9 5 1 4 2 3 4 3 4 4 5 4 4 6 Tactical Retreats 53 | . . 2 4 . 1 1 . 9 4 11 6 4 1 7 3 Traps | -11 -10 -10 -9 -9 -9 -8 -8 -8 -8 -8 -7 -7 -6 -6 -6 ------- Run | Scr Mat Min Mat Min Exi Min Mat Gar Mat Gar Fac Gar Fac Gar Fac Traps Triggered 24 | . 1 . . . . . 3 . 2 . 4 8 2 3 1 Indirectly . | . . . . . . . . . . . . . . . . Trap Hack Attempts . | . . . . . . . . . . . . . . . . Triggered . | . . . . . . . . . . . . . . . . Disarmed . | . . . . . . . . . . . . . . . . Reprogrammed . | . . . . . . . . . . . . . . . . Reused 42 | . . . . . . . . 7 5 6 8 . 3 2 11 Traps Reconfigurated 176 | . . . . . . . 3 21 16 13 41 3 32 13 34 Traps Extracted . | . . . . . . . . . . . . . . . . Installed . | . . . . . . . . . . . . . . . . Triggered 44 | . 1 . . . . . . 7 5 6 8 1 3 2 11 Exploded 2 | . . . . . 2 . . . . . . . . . . Machines | -11 -10 -10 -9 -9 -9 -8 -8 -8 -8 -8 -7 -7 -6 -6 -6 ---------- Run | Scr Mat Min Mat Min Exi Min Mat Gar Mat Gar Fac Gar Fac Gar Fac Machines Disabled 84 | . . . 9 1 2 . . 4 . 4 19 5 11 8 21 Max in Single Turn 10 | . . . 2 1 1 . . 1 . 1 10 1 5 2 4 Garrison Access 1 | . . . . . . . . . . . . . . . 1 Garrison Relay 18 | . . . . . . . . 4 . 4 . 5 . 5 . Phase Generator 1 | . . . . . . . . . . . . . . 1 . Machines Sabotaged . | . . . . . . . . . . . . . . . . Garrisons Compromised . | . . . . . . . . . . . . . . . . Overloaded Fab Kills 1 | . . . . . . . . . . . 1 . . . . Fab Network Shutdowns 3 | . . . . . . . . . . . 1 . 1 . 1 Hacking | -11 -10 -10 -9 -9 -9 -8 -8 -8 -8 -8 -7 -7 -6 -6 -6 --------- Run | Scr Mat Min Mat Min Exi Min Mat Gar Mat Gar Fac Gar Fac Gar Fac Machines Accessed 79 | . 5 . 9 . 1 . 2 . 7 . 21 . 20 . 14 Terminals 57 | . 5 . 8 . . . 1 . 6 . 14 . 13 . 10 Fabricators 8 | . . . . . . . . . . . 3 . 3 . 2 Repair Stations . | . . . . . . . . . . . . . . . . Recycling Units 4 | . . . 1 . . . . . . . 1 . 1 . 1 Scanalyzers 1 | . . . . . . . . . . . 1 . . . . Garrison Access 8 | . . . . . . . 1 . 1 . 2 . 3 . 1 Total Hacks 288 | . 9 . 22 . 1 . 3 . 19 . 69 . 84 . 81 Successful 238 | . 7 . 14 . 1 . 3 . 13 . 58 . 70 . 72 Failed 50 | . 2 . 8 . . . . . 6 . 11 . 14 . 9 Catastrophic 5 | . 1 . . . . . . . . . . . 3 . 1 Database Lockouts . | . . . . . . . . . . . . . . . . Manual 176 | . 5 . 18 . 1 . 1 . 15 . 37 . 46 . 53 Terminals 232 | . 9 . 20 . . . 2 . 18 . 51 . 66 . 66 Fabricators 32 | . . . . . . . . . . . 10 . 10 . 12 Repair Stations . | . . . . . . . . . . . . . . . . Recycling Units 8 | . . . 2 . . . . . . . 2 . 2 . 2 Scanalyzers 2 | . . . . . . . . . . . 2 . . . . Garrison Access 13 | . . . . . . . 1 . 1 . 4 . 6 . 1 Terminal Hacks 132 | . 4 . 4 . 1 . 1 . 6 . 27 . 40 . 49 Record 1 | . . . . . . . . . . . . . 1 . . Part Schematic 4 | . . . 1 . . . . . . . 3 . . . . Robot Schematic 5 | . . . . . . . . . . . 1 . 3 . 1 Robot Analysis 3 | . . . . . . . . . 1 . . . 2 . . Prototype ID Bank 43 | . . . 1 . . . . . . . 1 . 8 . 33 Emergency Access Points 2 | . 1 . . . . . 1 . . . . . . . . Terminal Index 3 | . . . . . . . . . . . 1 . 1 . 1 Fabricator Index 1 | . . . 1 . . . . . . . . . . . . Garrison Index 3 | . . . . . . . . . . . 1 . 1 . 1 Unreport Threat 17 | . . . . . . . . . 3 . 4 . 6 . 4 Locate Traps 18 | . 1 . . . . . . . 2 . 6 . 5 . 4 Dispatch Records 2 | . 1 . . . . . . . . . 1 . . . . Surveillance Status 1 | . . . . . . . . . . . 1 . . . . Patrol Status 2 | . . . . . . . . . . . . . 1 . 1 Investigation Status 2 | . . . . . . . . . . . 1 . . . 1 Extermination Status 1 | . . . . . . . . . . . . . 1 . . Reinforcement Status 2 | . . . . . . . . . . . . . 2 . . Assault Status 1 | . . . . . . . . . . . . . 1 . . Recall Investigation 1 | . . . . . . . . . . . . . 1 . . Recall Extermination 6 | . . . . . . . . . . . 2 . 2 . 2 Recall Reinforcements 2 | . . . . . . . . . . . 1 . 1 . . Recall Assault 5 | . . . . . . . . . . . 2 . 2 . 1 Registered Components 2 | . 1 . . . . . . . . . 1 . . . . Registered Prototypes 1 | . . . . . . . . . . . . . 1 . . Zone Layout 3 | . . . 1 . . . . . . . 1 . 1 . . EX-Prototype ID Bank 1 | . . . . . 1 . . . . . . . . . . Fabricator Hacks 25 | . . . . . . . . . . . 7 . 8 . 10 Network Status 2 | . . . . . . . . . . . . . . . 2 Load Schematic 7 | . . . . . . . . . . . 2 . 3 . 2 Build 16 | . . . . . . . . . . . 5 . 5 . 6 Repair Station Hacks . | . . . . . . . . . . . . . . . . Recycling Unit Hacks 8 | . . . 2 . . . . . . . 2 . 2 . 2 Process 4 | . . . 1 . . . . . . . 1 . 1 . 1 Report Inventory 4 | . . . 1 . . . . . . . 1 . 1 . 1 Scanalyzer 2 | . . . . . . . . . . . 2 . . . . Insert Component 1 | . . . . . . . . . . . 1 . . . . Analyze 1 | . . . . . . . . . . . 1 . . . . Garrison Access Hacks 4 | . . . . . . . 1 . 1 . 1 . 1 . . Unlock Access 4 | . . . . . . . 1 . 1 . 1 . 1 . . Unauthorized Hacks 143 | . 6 . 17 . . . 2 . 15 . 41 . 40 . 22 Terminals 57 | . 3 . 8 . . . 1 . 6 . 15 . 14 . 10 Assimilate 5 | . . . . . . . . . 1 . 1 . 1 . 2 Botnet 52 | . 3 . 8 . . . 1 . 5 . 14 . 13 . 8 Fabricators 3 | . . . . . . . . . . . 2 . 1 . . Report 1 | . . . . . . . . . . . 1 . . . . Overload 2 | . . . . . . . . . . . 1 . 1 . . Repair Stations . | . . . . . . . . . . . . . . . . Recycling Units . | . . . . . . . . . . . . . . . . Scanalyzers . | . . . . . . . . . . . . . . . . Garrison Access 7 | . . . . . . . . . . . 2 . 4 . 1 Reprogram 7 | . . . . . . . . . . . 2 . 4 . 1 Data Cores Recovered 2 | . . . . . . . . . 1 . . . 1 . . Used . | . . . . . . . . . . . . . . . . Hacking Detections 59 | . 2 . 7 . . . 2 . 5 . 18 . 13 . 12 Full Trace Events 1 | . 1 . . . . . . . . . . . . . . Feedback Events . | . . . . . . . . . . . . . . . . Feedback Blocked . | . . . . . . . . . . . . . . . . Robot Schematics Acquired 5 | . . . . . . . . . . . 1 . 3 . 1 Robots Built 17 | . . . . . . . . . . . 3 . 9 . 5 Matter 1644 | . . . . . . . . . . . 252 . 855 . 537 Time 581 | . . . . . . . . . . . 67 . 228 . 286 Total Robot Build Rating 80 | . . . . . . . . . . . 12 . 45 . 23 Part Schematics Acquired 5 | . . . 1 . . . . . . . 4 . . . . Parts Built 1 | . . . . . . . . . . . 1 . . . . Matter 358 | . . . . . . . . . . . 358 . . . . Time 89 | . . . . . . . . . . . 89 . . . . Total Part Build Rating 6 | . . . . . . . . . . . 6 . . . . Parts Repaired . | . . . . . . . . . . . . . . . . Time . | . . . . . . . . . . . . . . . . Parts Recycled . | . . . . . . . . . . . . . . . . Recycled Matter 568 | . . . 8 . . . . . . . 37 . 301 . 222 Retrieved Matter . | . . . . . . . . . . . . . . . . Retrieved Components . | . . . . . . . . . . . . . . . . Parts Scanalyzed 1 | . . . . . . . . . . . 1 . . . . Part Schematics Acquired 1 | . . . . . . . . . . . 1 . . . . Parts Damaged . | . . . . . . . . . . . . . . . . Bothacking | -11 -10 -10 -9 -9 -9 -8 -8 -8 -8 -8 -7 -7 -6 -6 -6 ------------ Run | Scr Mat Min Mat Min Exi Min Mat Gar Mat Gar Fac Gar Fac Gar Fac Used RIF Installer 4 | . . . . . . . . 1 . 1 . 1 . 1 . Structural Interface 1 | . . . . . . . . . . 1 . . . . . Autooverride 1 | . . . . . . . . . . . . 1 . . . Autoassimilate 1 | . . . . . . . . . . . . . . 1 . Robots Hacked 68 | . . . . . . . . . . . 14 11 21 9 13 Non-combat 26 | . . . . . . . . . . . 8 . 7 . 11 Combat 42 | . . . . . . . . . . . 6 11 14 9 2 Autooverrided 3 | . . . . . . . . . . . . . 3 . . Autoassimilated 1 | . . . . . . . . . . . . . . 1 . Robot Hacks Applied 75 | . . . . . . . . . . . 18 15 20 9 13 parse_system 14 | . . . . . . . . . . . 2 3 4 2 3 no_distress 1 | . . . . . . . . . . . . . . . 1 deconstruct_machine 1 | . . . . . . . . . . . 1 . . . . hold_bot 1 | . . . . . . . . . . . . . . . 1 find_fabricator 1 | . . . . . . . . . . . . . 1 . . find_recycling 1 | . . . . . . . . . . . . . . . 1 block_reporting 1 | . . . . . . . . . . . 1 . . . . map_route 10 | . . . . . . . . . . . 4 . 3 . 3 mark_security 2 | . . . . . . . . . . . 2 . . . . relay_feed 3 | . . . . . . . . . . . 1 . 1 . 1 link_fov 4 | . . . . . . . . . . . . . 1 . 3 link_complan 1 | . . . . . . . . . . . 1 . . . . disrupt_area 6 | . . . . . . . . . . . 4 . 2 . . wipe_record 2 | . . . . . . . . . . . 2 . . . . disable_weapons 4 | . . . . . . . . . . . . . 4 . . streamctrl_high 20 | . . . . . . . . . . . . 10 4 6 . formatsys_high 3 | . . . . . . . . . . . . 2 . 1 . Relay Couplers Released 31 | . . . . . . . . 7 . 7 . 9 1 7 . Machine Destruction 30 | . . . . . . . . 7 . 7 . 9 . 7 . Programmers 1 | . . . . . . . . . . . . . 1 . . Attached 12 | . . . . . . . . 1 . . 3 5 . 3 . Robots Rewired . | . . . . . . . . . . . . . . . . Allies Hacked 4 | . . . . . . . . . . . . . 2 2 . Hacks Repelled 1 | . . . . . . . . . . . . . . . 1 Allies | -11 -10 -10 -9 -9 -9 -8 -8 -8 -8 -8 -7 -7 -6 -6 -6 -------- Run | Scr Mat Min Mat Min Exi Min Mat Gar Mat Gar Fac Gar Fac Gar Fac Total Allies 62 | . . 5 . . . . . . 1 . 9 11 20 8 8 Largest Group 10 | . . 4 3 . . . . . 1 . 3 3 10 2 5 Highest-Rated Group 299 | . . 66 40 . . . . . 26 . 93 105 299 81 163 Highest-Rated Ally 81 | . . 31 16 . . . . . 26 . 38 81 54 81 38 Total Orders 18 | . . . . . . . . . 3 . . . 8 . 7 STAY 8 | . . . . . . . . . 2 . . . 2 . 4 FOLLOW 5 | . . . . . . . . . 1 . . . 1 . 3 EXPLORE 5 | . . . . . . . . . . . . . 5 . . Ally Attacks 322 | . . 47 21 . . . . . . . 54 23 100 42 35 Total Damage 6755 | . . 369 663 . . . . . . . 952 734 1605 1714 718 Kills 57 | . . 7 7 . . . . . . . 11 6 13 7 6 Allies Corrupted 2 | . . . . . . . . . . . . . 2 . . Allies Melted . | . . . . . . . . . . . . . . . . Intel | -11 -10 -10 -9 -9 -9 -8 -8 -8 -8 -8 -7 -7 -6 -6 -6 ------- Run | Scr Mat Min Mat Min Exi Min Mat Gar Mat Gar Fac Gar Fac Gar Fac Robot Analysis Total 3 | . . . . . . . . . 1 . . . 2 . . Derelict Logs Recovered 2 | . . 1 . 1 . . . . . . . . . . . Drone Launches 6 | . . . . . . . . . . . . . 6 . . Drone Recoveries . | . . . . . . . . . . . . . . . . Exploration | -11 -10 -10 -9 -9 -9 -8 -8 -8 -8 -8 -7 -7 -6 -6 -6 ------------- Run | Scr Mat Min Mat Min Exi Min Mat Gar Mat Gar Fac Gar Fac Gar Fac Turns Passed 40029 | 144 1068 1273 2623 1364 745 839 787 1996 3161 2142 6919 2744 4917 2353 6954 Spaces Moved 19520 | 106 552 726 1205 742 362 439 392 989 1288 1069 3484 1272 2476 1143 3275 Core 34 | 33 . . . . 1 . . . . . . . . . . Treads 19486 | 73 552 726 1205 742 361 439 392 989 1288 1069 3484 1272 2476 1143 3275 Legs . | . . . . . . . . . . . . . . . . Wheels . | . . . . . . . . . . . . . . . . Hover . | . . . . . . . . . . . . . . . . Flight . | . . . . . . . . . . . . . . . . Fastest Speed 50 | 50 160 160 160 180 180 180 163 163 163 166 166 166 163 163 163 Average Speed 167 | 125 160 160 170 180 181 180 167 163 165 166 169 179 166 163 163 Slowest Speed 800 | 160 160 160 180 180 800 180 180 163 180 166 170 190 210 180 163 Overloaded Moves . | . . . . . . . . . . . . . . . . Propulsion Burnouts . | . . . . . . . . . . . . . . . . Robots Hopped . | . . . . . . . . . . . . . . . . Cave-ins Triggered 1 | . . . . . . . . . 1 . . . . . . Exploration Rate (%) 73 | 5 82 101 92 99 64 95 35 65 47 99 70 98 74 99 50 Regions Visited 15 Branch Regions 4 Pre-discovered Areas . | . . . . . . . . . . . . . . . . Known Exits Taken 11 | 1 1 1 1 1 1 1 1 . 1 . 1 . 1 . . Unknown Exits Taken . | . . . . . . . . . . . . . . . . Scrap Searched 3 | . . 1 . 2 . . . . . . . . . . . Spaces Dug 15 | . . . . . . . . . 5 . 7 . . . 3 Terrain Destroyed 590 | . . . 25 1 4 3 3 . 10 . 99 . 53 107 285 Melee . | . . . . . . . . . . . . . . . . Projectile 159 | . . . 6 1 4 3 3 . 10 . 28 . 31 10 63 AOE 431 | . . . 19 . . . . . . . 71 . 22 97 222 Actions | -11 -10 -10 -9 -9 -9 -8 -8 -8 -8 -8 -7 -7 -6 -6 -6 --------- Run | Scr Mat Min Mat Min Exi Min Mat Gar Mat Gar Fac Gar Fac Gar Fac Total 25435 | 113 698 784 1655 763 409 465 510 1293 2218 1344 4280 1595 3116 1528 4664 Wait 4483 | . 113 18 325 18 23 10 81 239 872 208 554 152 437 267 1166 Move 19499 | 105 551 725 1204 741 361 438 391 985 1287 1067 3483 1270 2475 1141 3275 Hop . | . . . . . . . . . . . . . . . . Pick Up 29 | 1 3 1 1 . . . 1 4 . 2 7 1 4 3 1 Fast Attach 133 | 7 3 . 14 1 4 . 6 2 8 1 18 13 29 10 17 Attach 11 | . . . 1 . . . . . . 1 3 2 2 1 1 Detach 24 | . . . 2 . . . 1 . . 1 3 4 6 4 3 Swap 63 | . . . . . . . . . 1 1 17 7 13 3 21 Drop 113 | . 2 . 9 . 4 . 4 4 5 2 21 10 29 7 16 Fire 678 | . 19 27 54 3 17 14 5 38 35 42 105 75 82 58 104 Melee 4 | . . . . . . . . . . . 4 . . . . Ram . | . . . . . . . . . . . . . . . . Kick . | . . . . . . . . . . . . . . . . Crush . | . . . . . . . . . . . . . . . . Escape Stasis 12 | . . . . . . . . . . . . 12 . . . Rewire 7 | . . . . . . . . . . . . . . 5 2 Trap . | . . . . . . . . . . . . . . . . Miscellaneous 379 | . 7 13 45 . . 3 21 21 10 19 65 49 39 29 58 Route ------- -11/Scrapyard -10/Materials (discovered 3 exits: *Mat / *Min x2) -10/Mines (discovered 2 exits: *Mat x2) -9/Materials (discovered 3 exits: *Mat x2 / *Min) -9/Mines (discovered 3 exits: *Mat x2 / *Exi) -9/Exiles -8/Mines (discovered 2 exits: *Mat x2) -8/Materials (discovered 2 exits: *Fac / Gar) -8/Garrison (discovered 3 exits: *Mat x3) -8/Materials (discovered 2 exits: *Fac / Gar) -8/Garrison (discovered 3 exits: *Fac x3) -7/Factory (discovered 6 exits: *Fac x4 / *Low / Gar) -7/Garrison (discovered 3 exits: *Fac x3) -6/Factory (discovered 6 exits: *Fac x3 / *Low x2 / Gar) -6/Garrison (discovered 3 exits: *Fac x3) -6/Factory (discovered 2 exits: *Fac / *Low) History --------- Turn | Location | Event 13 | -11/Scrapyard | Identified exit to Materials 13 | -11/Scrapyard | Discovered exit to Materials (range 16) 38 | -11/Scrapyard | Upgraded with Propulsion slot (x1) 81 | -11/Scrapyard | Upgraded with Weapon slot (x1) 106 | -11/Scrapyard | Upgraded with Utility slot (x1) 145 | -11/Scrapyard | Entered Materials 166 | -10/Materials | Upgraded with Utility slot (x1) 294 | -10/Materials | Identified exit to Mines 294 | -10/Materials | Discovered exit to Mines (range 12) 317 | -10/Materials | Build established: Hacker-Mutant 462 | -10/Materials | Identified exit to Materials 462 | -10/Materials | Discovered exit to Materials (range 16) 577 | -10/Materials | Upgraded with Utility slot (x1) 751 | -10/Materials | Discovered exit to Mines (range 15) 1213 | -10/Materials | Entered Mines 1237 | -10/Mines | Assembled infested the area 1242 | -10/Mines | Assisted by a Guerilla fighting off Assembled 1272 | -10/Mines | Met a Derelict bent on vengeance 1590 | -10/Mines | Assisted by bots powering up and referring to "LRC-V3" 1608 | -10/Mines | Learned Materials emergency access door positions 1699 | -10/Mines | Discovered exit to Materials (range 10) 1892 | -10/Mines | Discovered exit to Materials (range 13) 2486 | -10/Mines | Entered Materials 2486 | -9/Materials | Accompanied by 3 allies 2488 | -9/Materials | Reached level 2 2488 | -9/Materials | Reached level 3 2488 | -9/Materials | Reached level 4 2615 | -9/Materials | Upgraded with Power slot (x1) 2745 | -9/Materials | Upgraded with Utility slot (x1) 2762 | -9/Materials | Upgraded with Weapon slot (x1) 2786 | -9/Materials | Identified exit to Materials 2786 | -9/Materials | Discovered exit to Materials (range 5) 2896 | -9/Materials | Reached level 5 3021 | -9/Materials | Build established: Hacker-Gunner 3128 | -9/Materials | Identified exit to Mines 3128 | -9/Materials | Discovered exit to Mines (range 15) 3232 | -9/Materials | Upgraded with Utility slot (x1) 3569 | -9/Materials | Discovered exit to Materials (range 15) 3812 | -9/Materials | Reached level 6 3955 | -9/Materials | Upgraded with Utility slot (x1) 4261 | -9/Materials | Build established: Hacker-Tank 5109 | -9/Materials | Entered Mines 5109 | -9/Mines | A weapon hastily lodged in a ceiling crevice suddenly fell to the ground 5111 | -9/Mines | Reached level 7 5115 | -9/Mines | Upgraded with Weapon slot (x1) 5433 | -9/Mines | Deemed a non-threat by the Exiles lab entrance 5435 | -9/Mines | Identified exit to Exiles 5435 | -9/Mines | Discovered exit to Exiles (range 5) 5830 | -9/Mines | Learned Materials stockpile data 6059 | -9/Mines | Discovered exit to Materials (range 6) 6094 | -9/Mines | Discovered exit to Materials (range 9) 6473 | -9/Mines | Entered Exiles 6517 | -9/Exiles | Met 8R-AWN 6547 | -9/Exiles | Met EX-HEX 6635 | -9/Exiles | Met EX-BIN 6675 | -9/Exiles | Aligned with FarCom system 6677 | -9/Exiles | Given EX-Vault access code 6718 | -9/Exiles | Opened EX-Vault 6731 | -9/Exiles | Found Prototype Device 6731 | -9/Exiles | Identified Trap Reconfigurator 6806 | -9/Exiles | Exiles lab attacked by MAIN.C 7041 | -9/Exiles | Identified exit to Mines 7041 | -9/Exiles | Discovered exit to Mines (range 10) 7062 | -9/Exiles | Reached level 8 7185 | -9/Exiles | Core integrity fell below 50% 7218 | -9/Exiles | Left Exiles lab with Trap Reconfigurator 7218 | -9/Exiles | Entered Mines 7932 | -8/Mines | Discovered exit to Materials (range 6) 7967 | -8/Mines | Discovered exit to Materials (range 6) 8039 | -8/Mines | Build established: Hacker-Mutant 8057 | -8/Mines | Entered Materials 8058 | -8/Materials | Core integrity fell below 50% 8059 | -8/Materials | Reached level 9 8247 | -8/Materials | Upgraded with Propulsion slot (x1) 8608 | -8/Materials | Identified exit to Factory 8608 | -8/Materials | Discovered exit to Factory (range 16) 8671 | -8/Materials | Upgraded with Utility slot (x1) 8773 | -8/Materials | Reached level 10 8842 | -8/Materials | Identified exit to Garrison 8844 | -8/Materials | Entered Garrison 8930 | -8/Garrison | Triggered checkpoint 8961 | -8/Garrison | Garrison Relay disabled 9146 | -8/Garrison | Triggered checkpoint 9178 | -8/Garrison | Reached level 11 9204 | -8/Garrison | Triggered checkpoint 9300 | -8/Garrison | Build established: Hacker-Tank 9411 | -8/Garrison | Triggered checkpoint 9426 | -8/Garrison | Triggered checkpoint 9525 | -8/Garrison | Identified exit to Materials 9525 | -8/Garrison | Discovered exit to Materials (range 10) 9551 | -8/Garrison | Installed Relay Interface Framework 9588 | -8/Garrison | Triggered checkpoint 9620 | -8/Garrison | Garrison Relay disabled 9650 | -8/Garrison | Upgraded with Utility slot (x1) 9900 | -8/Garrison | Discovered exit to Materials (range 15) 9960 | -8/Garrison | Triggered checkpoint 10001 | -8/Garrison | Garrison Relay disabled 10123 | -8/Garrison | Discovered exit to Materials (range 12) 10174 | -8/Garrison | Triggered checkpoint 10187 | -8/Garrison | Reached level 12 10211 | -8/Garrison | Garrison Relay disabled 10503 | -8/Garrison | Build established: Hacker-Mutant 10840 | -8/Garrison | Entered Materials 11164 | -8/Materials | Build established: Hacker-Tank 11959 | -8/Materials | Build established: Hacker-Mutant 13234 | -8/Materials | Build established: Hacker-Gunner 13787 | -8/Materials | Discovered exit to Factory (range 8) 13968 | -8/Materials | Crushed by falling debris 14000 | -8/Materials | Identified exit to Garrison 14001 | -8/Materials | Entered Garrison 14110 | -8/Garrison | Triggered checkpoint 14142 | -8/Garrison | Garrison Relay disabled 14206 | -8/Garrison | Triggered checkpoint 14316 | -8/Garrison | Reached level 13 14508 | -8/Garrison | Triggered checkpoint 14558 | -8/Garrison | Triggered checkpoint 14690 | -8/Garrison | Triggered checkpoint 14817 | -8/Garrison | Discovered exit to Factory (range 10) 14876 | -8/Garrison | Triggered checkpoint 14892 | -8/Garrison | Garrison Relay disabled 15023 | -8/Garrison | Discovered exit to Factory (range 10) 15076 | -8/Garrison | Triggered checkpoint 15125 | -8/Garrison | Garrison Relay disabled 15259 | -8/Garrison | Discovered exit to Factory (range 11) 15286 | -8/Garrison | Expanded RIF knowledge: Structural Interface 15374 | -8/Garrison | Triggered checkpoint 15426 | -8/Garrison | Garrison Relay disabled 15720 | -8/Garrison | Build established: Hacker-Mutant 16143 | -8/Garrison | Entered Factory 16145 | -7/Factory | Reached level 14 16162 | -7/Factory | Identified exit to Factory 16162 | -7/Factory | Discovered exit to Factory (range 13) 16815 | -7/Factory | Fabricated Adv. Hacking Suite (x1) 17175 | -7/Factory | Build established: Wizard-Tank 17707 | -7/Factory | Build established: Wizard-Mutant 18284 | -7/Factory | Reached level 15 18818 | -7/Factory | Upgraded with Utility slot (x1) 18870 | -7/Factory | Allied Derelicts emerged from ambush trap array 18936 | -7/Factory | P-60 Hacker assimilated allied K5-S53(g) 19717 | -7/Factory | Build established: Wizard-Skirmisher 20148 | -7/Factory | Discovered exit to Factory (range 13) 20996 | -7/Factory | Fabricated L-41 Fighter? 21018 | -7/Factory | Build established: Wizard-Mutant 21142 | -7/Factory | Discovered exit to Factory (range 7) 21275 | -7/Factory | Reached level 16 21463 | -7/Factory | Local fabrication network quarantined 21513 | -7/Factory | Build established: Wizard-Skirmisher 21553 | -7/Factory | Identified exit to Lower Caves 21553 | -7/Factory | Discovered exit to Lower Caves (range 15) 22717 | -7/Factory | Build established: Wizard-Mutant 22976 | -7/Factory | Discovered exit to Factory (range 5) 23016 | -7/Factory | Identified exit to Garrison 23062 | -7/Factory | Entered Garrison 23062 | -7/Garrison | Accompanied by 1 ally 23098 | -7/Garrison | Triggered checkpoint 23104 | -7/Garrison | P-60 Hacker assimilated allied Y-54 Guardian 23307 | -7/Garrison | Garrison Relay disabled 23330 | -7/Garrison | Garrison Relay disabled 23386 | -7/Garrison | Triggered checkpoint 23513 | -7/Garrison | Spotted B-75 Beast 23513 | -7/Garrison | Spotted B-75 Beast 23528 | -7/Garrison | Assimilated Beast 4a with formatsys_high 23548 | -7/Garrison | Hijacked Beast 4b control node with streamctrl_high 23551 | -7/Garrison | Reached level 17 23709 | -7/Garrison | Triggered checkpoint 23741 | -7/Garrison | Triggered checkpoint 23854 | -7/Garrison | Destroyed Beast 4b 23861 | -7/Garrison | Core integrity fell below 50% 23950 | -7/Garrison | Triggered checkpoint 24121 | -7/Garrison | Build established: Wizard-Tank 24182 | -7/Garrison | Triggered checkpoint 24346 | -7/Garrison | Discovered exit to Factory (range 7) 24531 | -7/Garrison | Discovered exit to Factory (range 15) 24636 | -7/Garrison | Triggered checkpoint 24696 | -7/Garrison | Garrison Relay disabled 24894 | -7/Garrison | Triggered checkpoint 25015 | -7/Garrison | Garrison Relay disabled 25204 | -7/Garrison | Triggered checkpoint 25316 | -7/Garrison | Discovered exit to Factory (range 9) 25341 | -7/Garrison | Expanded RIF knowledge: Autooverride 25804 | -7/Garrison | Upgraded with Utility slot (x1) 25806 | -7/Garrison | Entered Factory 25808 | -6/Factory | Reached level 18 26113 | -6/Factory | Build established: Wizard-Skirmisher 26482 | -6/Factory | Identified exit to Factory 26482 | -6/Factory | Discovered exit to Factory (range 13) 26840 | -6/Factory | Fabricated G-50 Soldier? 26941 | -6/Factory | Fabricated G-50 Soldier (x3) 27024 | -6/Factory | Fabricated G-50 Soldier (x3) 27094 | -6/Factory | Local fabrication network quarantined 27097 | -6/Factory | Identified exit to Lower Caves 27097 | -6/Factory | Discovered exit to Lower Caves (range 15) 27671 | -6/Factory | P-60 Hacker assimilated hostile S-27 Virus 28010 | -6/Factory | Discovered exit to Lower Caves (range 12) 28258 | -6/Factory | Reached level 19 28708 | -6/Factory | Spotted B-75 Beast 29278 | -6/Factory | Discovered exit to Factory (range 11) 30153 | -6/Factory | Discovered exit to Factory (range 16) 30650 | -6/Factory | P-70 Sage assimilated hostile Y-54 Guardian 30721 | -6/Factory | Identified exit to Garrison 30723 | -6/Factory | Entered Garrison 30732 | -6/Garrison | Expanded RIF knowledge: Autoassimilate 30772 | -6/Garrison | Triggered checkpoint 30842 | -6/Garrison | Garrison Relay disabled 30953 | -6/Garrison | Triggered checkpoint 31060 | -6/Garrison | Triggered checkpoint 31211 | -6/Garrison | Spotted B-75 Beast 31240 | -6/Garrison | Garrison Relay disabled 31240 | -6/Garrison | Reached level 20 31244 | -6/Garrison | Assimilated Beast 5a with formatsys_high 31318 | -6/Garrison | Triggered checkpoint 31401 | -6/Garrison | Garrison Relay disabled 31434 | -6/Garrison | Identified exit to Factory 31434 | -6/Garrison | Discovered exit to Factory (range 4) 31446 | -6/Garrison | Phase Generator disabled 31766 | -6/Garrison | Triggered checkpoint 31822 | -6/Garrison | Discovered exit to Factory (range 12) 32002 | -6/Garrison | Triggered checkpoint 32102 | -6/Garrison | Garrison Relay disabled 32164 | -6/Garrison | Triggered checkpoint 32443 | -6/Garrison | Destroyed Beast 5a 32496 | -6/Garrison | Triggered checkpoint 32518 | -6/Garrison | Garrison Relay disabled 32581 | -6/Garrison | Triggered checkpoint 32643 | -6/Garrison | Discovered exit to Factory (range 13) 33076 | -6/Garrison | Entered Factory 33361 | -6/Factory | Fabricated X-62 Marksman (x2) 33518 | -6/Factory | Fabricated G-50 Soldier (x3) 33572 | -6/Factory | Local fabrication network quarantined 33739 | -6/Factory | Upgraded with Utility slot (x1) 33829 | -6/Factory | Discovered exit to Factory (range 40) 35042 | -6/Factory | Build established: Wizard-Mutant 35765 | -6/Factory | Build established: Wizard-Skirmisher 37689 | -6/Factory | Reached level 21 38728 | -6/Factory | Core integrity fell below 50% 39307 | -6/Factory | Discovered exit to Lower Caves (range 14) 39710 | -6/Factory | Build established: Wizard-Mutant 39978 | -6/Factory | Core integrity fell below 20% 40030 | -6/Factory | Destroyed by H-66 Slayer with Gauss Rifle Last Messages --------------- 39974_ G-50 Soldier destroyed. 39974_ U-05 Engineer builds a Door. 39977_ Penetrated by Slug. 39977_ System corrupted: Magnetic Acceleration Cannon targeting data glitched. 39979_ Protomatter-11 decays. 39980_ H-66 Slayer IFF system glitched. 39980_ U-05 Engineer lays Concrete. 39981_ System corrupted: Matter fused (-6). 39981_ The unstable cave ceiling collapses. 39981_ U-05 Engineer lays Concrete. 39983_ Slug penetrates Wall. 40015_ Fusion Modulator explodes. 40015_ Targeting Computer fried. 40015_ H-66 Slayer destroyed. 40015_ G-50 Soldier destroyed. 40015_ Fusion Modulator explodes. 40019_ Slug penetrates Earth. 40022_ Penetrated by Slug. 40029_ System corrupted: Heat flow error (+105). Map ----- +----------------------------------------------------+ | #???????????????????# ### %! +??????? | | #???????????????????# "## #??????? | | ! #???????????????##### "## #??????? | | #####+#######????????????### ### #??????? | | ???## #??????????????????# ] # #??????? | | ? ## #?????????????????## # #??????? | | ?? ##+######?????????##### # #??????? | | ?" ## #?????????# / * ??????? | | "" ## #?????????# % !%= ??????? | | ## !!!#?????????#""" = % / ?????? | | "" ## !! #?????????# h ] ! % ?????? | | "" ## !! #?????????# ";; ?????? | | "" ## #?????????# " ????? | | #####+########???## # ## # ### ????? | | + + #???#; ; # ##?###?????? ?????? | | # # #?###; ; ##???????????? ???? | | ##+# # " "" #?#;;;;; ;;;; ????????????!]=????? | | + "R"? #?#; ;##?????????? !]=????? | | ##+####### """ #?#; % #?????????? ]= ????? | | # ## #?#;! #????BB??? ? ??? | | # #########?# #????BB??? "Y" "?? | | # #?????????#; * #???????? """ "?? | | # #????"????#;! #???????? ???? | | # #????"????#; = ; #??????? = ?????? | | # #???? ????#;R ;#???????? #??????? | | # #???? ?????# @ ;#??????? #??????? | | #] #???? ?#####;;;;;;;;;######## #??????? | | #???????#???? ?# #??????? | | ????? #####+## +??????? | | ????? + #??????? | | ??????????### #??????? | | ????????????# #??????? | | ???????????## ###### #####;########## #####??????? | | ???????????# #???# #?# #??? #??????????? | | #######????# #???# #?# ! #??? #??????????? | | #????# #???# #?# """ #??? #??????????? | | * #######+###### #?# """ #??? #??????????? | | ## # #?# """ #??? #??????????? | | ## """"""""" # #?# " " #??? #??????????? | | ## # #?# "R" ?????#??????????? | | ## """"""""" # #?# """ ! ????????????????? | | ## # #?###########???????????????? | | ## """ """ # #???????????????????????????? | | ## """G""" !# #???????????????????????????? | | ##############+###?????????????????????????? | | #???????# #?????????????????????????? | | #???????# #?????????????????????????? | | #######???????#! # ?????????????????????? | | ??????????????# + >??????????????????????? | | ############### #?????????????????????????? | +----------------------------------------------------+ Best States ------------- Heat Dissipation 71 Coolant Potential 65 Energy Generation 29 Energy Capacity 500 Matter Stores 308 Matter Capacity 550 Sight Range 16 Terrain Scan Density 10 ECM Strength 3 Jamming Range 12 Base Temperature (-) 150 Corruption Prevention 12 Armor Coverage 600 Resistance: KI 35 Resistance: TH 35 Resistance: EX 85 Resistance: EM 35 Resistance: I 35 Resistance: S 35 Resistance: P 35 Evasion (%) 50 Targeting Accuracy 5 Target Analysis 5 Recoil Reduction 3 Matter Filtering 30 Energy Filtering 30 Offensive Hacking 49 Defensive Hacking 20 Item Schematics ----------------- Datajack | -9/Materials | Hacked Imp. Datajack | -7/Factory | Hacked Adv. Hacking Suite | -7/Factory | Hacked Adv. Sensor Array | -7/Factory | Scanalyzed Adv. Plasma Cannon | -7/Factory | Hacked Robot Schematics ------------------ L-41 Fighter | -7/Factory | Hacked G-50 Soldier | -6/Factory | Hacked X-62 Marksman | -6/Factory | Hacked H-66 Slayer | -6/Factory | Hacked K-01 Serf | -6/Factory | Hacked Fabricated ------------ Adv. Hacking Suite | x1 | -7/Factory L-41 Fighter | x3 | -7/Factory | Preloaded G-50 Soldier | x3 | -6/Factory G-50 Soldier | x3 | -6/Factory G-50 Soldier | x3 | -6/Factory X-62 Marksman | x2 | -6/Factory G-50 Soldier | x3 | -6/Factory Alien Tech Used ----------------- None Achievements -------------- Guerrilla Style No Signal Quantum Hacking Ride The Lightning War Machine Challenges ------------ None RPGLIKE | -11 -10 -10 -9 -9 -9 -8 -8 -8 -8 -8 -7 -7 -6 -6 -6 --------- Run | Scr Mat Min Mat Min Exi Min Mat Gar Mat Gar Fac Gar Fac Gar Fac Levels Raised 20 | . . . 5 1 1 . 2 2 . 1 3 1 2 1 1 XP Earned 36732 | 6000 855 500 7476 1000 957 900 1935 3003 872 1351 4457 1272 3265 1339 1550 XP Spent 33410 | 1750 3150 1000 6400 1100 . . 3160 3850 1900 . 4400 3200 . . 3500 Upgrades 30 | 4 4 1 5 1 . . 4 2 5 . 2 1 . . 1 Power Slot 1 | . . . 1 . . . . . . . . . . . . Propulsion Slot 2 | 1 . . . . . . 1 . . . . . . . . Utility Slot 11 | 1 2 . 3 . . . 1 1 . . 1 1 . . 1 Weapon Slot 3 | 1 . . 1 1 . . . . . . . . . . . Core Integrity 2 | . . . . . . . 2 . . . . . . . . Inventory Capacity 6 | 1 2 1 . . . . . 1 . . 1 . . . . Hack Attack % 3 | . . . . . . . . . 3 . . . . . . Hack Defense % 2 | . . . . . . . . . 2 . . . . . . Protomatter Created 3726 | . 84 58 460 60 38 19 157 162 109 188 481 234 275 448 953 Integrity Restored 7218 | . 109 238 709 . . 57 471 400 178 421 1314 1030 713 476 1102 Core 5118 | . 60 203 399 . . 57 471 146 170 353 813 784 590 291 781 Parts 2100 | . 49 35 310 . . . . 254 8 68 501 246 123 185 321 Protomatter Decayed 2636 | . 45 199 280 60 105 . . 24 . 46 318 184 277 451 647 Game ------ Seed FactoryDimensionalUnit Manual? 0 Play Time 05:16:54 Cumulative 150.5 hours Start 2020.04.09 @ 19:06:34 End 2020.04.10 @ 10:54:10 Sessions 5 Manual Loads 0 Difficulty Explorer Special Mode Winter2019/RPGLIKE Game No. 94 Rogue 74 Adventurer 0 Explorer 20 Win Type - Total 2 Types 2/0/0/0/0/0/0 Lore% 59 Gallery% 60 Achievement% 55 Wizard Run 0 Options --------- ASCII 0 Keyboard 1 Movement Vi Keybinds 0 Fullscreen 1 Font 18/X11 Map View 76x50 Tactical HUD 1 Map Filters NONE Filters LOW_CONTRAST(47,30,31) Steam 1 RUN: addafb05-d5d0-470f-9db5-dda96f0cb8f8